[Event "*** SCC Grand Prix: Titled Tuesday Blitz"]
[Site "Chess.com"]
[Date "2020.09.08"]
[Round "3"]
[White "Aborigen_came"]
[Black "ChelsieMonica"]
[Result "1-0"]
[WhiteElo "2707"]
[BlackElo "2419"]
[TimeControl "180+1"]
[EndTime "10:28:05 PDT"]
[Termination "Aborigen_came won by resignation"]

1. Nc3 {[%clk 0:03:00.9]} 1... e5 {[%clk 0:02:59.4]} 2. Nf3 {[%clk 0:03:00.4]}
2... Nc6 {[%clk 0:03:00.3]} 3. d4 {[%clk 0:02:58.6]} 3... exd4 {[%clk
0:03:00.4]} 4. Nxd4 {[%clk 0:02:59.5]} 4... Nf6 {[%clk 0:03:00.8]} 5. Bg5 {[%clk
0:02:58.7]} 5... Be7 {[%clk 0:02:59.8]} 6. Nf5 {[%clk 0:02:58.5]} 6... O-O
{[%clk 0:02:57.6]} 7. Nxe7+ {[%clk 0:02:58.4]} 7... Qxe7 {[%clk 0:02:57.1]} 8.
Nd5 {[%clk 0:02:58.5]} 8... Qe5 {[%clk 0:02:53.1]} 9. Bxf6 {[%clk 0:02:58.6]}
9... gxf6 {[%clk 0:02:52.7]} 10. e3 {[%clk 0:02:59.1]} 10... Qxb2 {[%clk
0:02:49.1]} 11. Rb1 {[%clk 0:02:58.3]} 11... Qe5 {[%clk 0:02:48.4]} 12. f4
{[%clk 0:02:56.9]} 12... Qe6 {[%clk 0:02:38.5]} 13. Kf2 {[%clk 0:02:38.6]} 13...
Qd6 {[%clk 0:02:28.3]} 14. Bd3 {[%clk 0:02:32.4]} 14... Kh8 {[%clk 0:02:23.5]}
15. Qh5 {[%clk 0:02:22.2]} 15... f5 {[%clk 0:02:21.7]} 16. Bxf5 {[%clk
0:02:05.8]} 16... h6 {[%clk 0:02:16.6]} 17. Rhd1 {[%clk 0:02:04.8]} 17... Kg7
{[%clk 0:02:07]} 18. Nb6 {[%clk 0:01:57.6]} 18... Qxd1 {[%clk 0:01:52.4]} 19.
Rxd1 {[%clk 0:01:54.4]} 19... axb6 {[%clk 0:01:52]} 20. e4 {[%clk 0:01:39.6]}
20... Ra3 {[%clk 0:01:38.4]} 21. Qg4+ {[%clk 0:01:22.6]} 21... Kh8 {[%clk
0:01:37.3]} 22. e5 {[%clk 0:01:15.1]} 22... Ne7 {[%clk 0:01:27.3]} 23. Bxd7
{[%clk 0:01:14.3]} 23... Bxd7 {[%clk 0:01:20.2]} 24. Rxd7 {[%clk 0:01:13.2]}
24... Ng6 {[%clk 0:01:18.2]} 25. g3 {[%clk 0:00:51.5]} 25... Rxa2 {[%clk
0:01:10.5]} 26. Qf5 {[%clk 0:00:49.5]} 26... c6 {[%clk 0:00:57.2]} 27. e6 {[%clk
0:00:43.1]} 1-0

[Event "*** SCC Grand Prix: Titled Tuesday Blitz"]
[Site "Chess.com"]
[Date "2020.09.08"]
[Round "3"]
[White "Colombiano07"]
[Black "Gloomy_Wanderer"]
[Result "0-1"]
[WhiteElo "2330"]
[BlackElo "2741"]
[TimeControl "180+1"]
[EndTime "10:28:08 PDT"]
[Termination "Gloomy_Wanderer won by resignation"]

1. d4 {[%clk 0:02:59.7]} 1... Nf6 {[%clk 0:02:59.8]} 2. Bf4 {[%clk 0:02:59.1]}
2... e6 {[%clk 0:03:00.1]} 3. e3 {[%clk 0:02:59.2]} 3... b6 {[%clk 0:02:59]} 4.
Nd2 {[%clk 0:02:59.3]} 4... Be7 {[%clk 0:02:58.8]} 5. Be2 {[%clk 0:02:58.1]}
5... c5 {[%clk 0:02:55.8]} 6. Bf3 {[%clk 0:02:58.2]} 6... d5 {[%clk 0:02:53.7]}
7. dxc5 {[%clk 0:02:54.8]} 7... bxc5 {[%clk 0:02:52.3]} 8. c4 {[%clk 0:02:55.2]}
8... O-O {[%clk 0:02:50]} 9. Ne2 {[%clk 0:02:55]} 9... Nc6 {[%clk 0:02:49.8]}
10. O-O {[%clk 0:02:53.3]} 10... Qb6 {[%clk 0:02:41.1]} 11. b3 {[%clk
0:02:52.6]} 11... Bb7 {[%clk 0:02:39.8]} 12. cxd5 {[%clk 0:02:51.5]} 12... exd5
{[%clk 0:02:36.4]} 13. Nc3 {[%clk 0:02:47.9]} 13... Rfd8 {[%clk 0:02:36.5]} 14.
Qc2 {[%clk 0:02:43.1]} 14... Rac8 {[%clk 0:02:33.6]} 15. Na4 {[%clk 0:02:35]}
15... Qa5 {[%clk 0:02:33.1]} 16. Rfd1 {[%clk 0:02:28.4]} 16... Nb4 {[%clk
0:02:26.1]} 17. Qf5 {[%clk 0:02:27.4]} 17... g6 {[%clk 0:02:23.4]} 18. Qe5
{[%clk 0:02:06]} 18... Nc6 {[%clk 0:01:54.2]} 19. Qc3 {[%clk 0:02:01]} 19... Qb5
{[%clk 0:01:37.3]} 20. Rac1 {[%clk 0:01:56.3]} 20... Nb4 {[%clk 0:01:33.7]} 21.
Qa1 {[%clk 0:01:23.6]} 21... d4 {[%clk 0:01:28.4]} 22. Bxb7 {[%clk 0:01:21.5]}
22... Qxb7 {[%clk 0:01:29.3]} 23. exd4 {[%clk 0:01:16]} 23... Nd3 {[%clk
0:01:25.1]} 24. Be5 {[%clk 0:00:52.4]} 24... Nxc1 {[%clk 0:01:23.4]} 25. Rxc1
{[%clk 0:00:53.3]} 25... cxd4 {[%clk 0:01:22.1]} 26. Nc4 {[%clk 0:00:49.6]}
26... Qe4 {[%clk 0:00:57]} 27. Re1 {[%clk 0:00:46.9]} 27... Qf5 {[%clk
0:00:54.6]} 28. Bxd4 {[%clk 0:00:45.4]} 28... Rd7 {[%clk 0:00:51.3]} 29. Rxe7
{[%clk 0:00:40.5]} 29... Rxe7 {[%clk 0:00:51.4]} 30. Bxf6 {[%clk 0:00:40.4]}
30... Qxf6 {[%clk 0:00:51.2]} 0-1

[Event "*** SCC Grand Prix: Titled Tuesday Blitz"]
[Site "Chess.com"]
[Date "2020.09.08"]
[Round "3"]
[White "Sacbutt"]
[Black "Barmen_EV"]
[Result "0-1"]
[WhiteElo "2219"]
[BlackElo "2446"]
[TimeControl "180+1"]
[EndTime "10:28:08 PDT"]
[Termination "Barmen_EV won by resignation"]

1. e4 {[%clk 0:03:00.9]} 1... c5 {[%clk 0:02:46.1]} 2. Nf3 {[%clk 0:02:59.9]}
2... Nc6 {[%clk 0:02:45.7]} 3. d4 {[%clk 0:02:59.7]} 3... cxd4 {[%clk
0:02:46.6]} 4. c3 {[%clk 0:03:00.1]} 4... Nf6 {[%clk 0:02:47.5]} 5. e5 {[%clk
0:02:59.7]} 5... Nd5 {[%clk 0:02:47.8]} 6. cxd4 {[%clk 0:02:59.9]} 6... d6
{[%clk 0:02:48.6]} 7. Nc3 {[%clk 0:02:58.3]} 7... dxe5 {[%clk 0:02:47.9]} 8.
Nxe5 {[%clk 0:02:57.7]} 8... Nxc3 {[%clk 0:02:48.5]} 9. Nxc6 {[%clk 0:02:26]}
9... Qd6 {[%clk 0:02:21.8]} 10. bxc3 {[%clk 0:02:22.2]} 10... Qxc6 {[%clk
0:02:21.5]} 11. Qb3 {[%clk 0:02:16.4]} 11... Bd7 {[%clk 0:02:16.6]} 12. Bc4
{[%clk 0:02:05.5]} 12... e6 {[%clk 0:02:15.9]} 13. d5 {[%clk 0:02:04]} 13... Qc7
{[%clk 0:01:58.5]} 14. dxe6 {[%clk 0:02:00]} 14... fxe6 {[%clk 0:01:58.1]} 15.
O-O {[%clk 0:01:56.2]} 15... Bd6 {[%clk 0:01:57.5]} 16. Bxe6 {[%clk 0:01:53.1]}
16... O-O-O {[%clk 0:01:51.1]} 17. g3 {[%clk 0:01:40.2]} 17... Rhe8 {[%clk
0:01:47.4]} 18. Bxd7+ {[%clk 0:01:33.2]} 18... Rxd7 {[%clk 0:01:48.3]} 19. Ba3
{[%clk 0:01:26.5]} 19... Kb8 {[%clk 0:01:40]} 20. Bxd6 {[%clk 0:01:17.8]} 20...
Rxd6 {[%clk 0:01:40.9]} 21. Rad1 {[%clk 0:01:16.8]} 21... Rc6 {[%clk 0:01:40.4]}
22. Rd3 {[%clk 0:01:15.5]} 22... Rb6 {[%clk 0:01:20.1]} 23. Qd5 {[%clk
0:01:12.2]} 23... a6 {[%clk 0:01:17.4]} 24. Rfd1 {[%clk 0:01:07]} 24... Rc6
{[%clk 0:01:17.4]} 25. Qh5 {[%clk 0:00:58.5]} 25... g6 {[%clk 0:01:13.2]} 26.
Qf3 {[%clk 0:00:54.2]} 26... Re7 {[%clk 0:01:09.9]} 27. a4 {[%clk 0:00:37.2]}
27... Ka7 {[%clk 0:01:06.9]} 28. Qg4 {[%clk 0:00:32.8]} 28... Rc4 {[%clk
0:01:03.8]} 29. Rd7 {[%clk 0:00:20.2]} 29... Rxg4 {[%clk 0:01:02.1]} 0-1

[Event "*** SCC Grand Prix: Titled Tuesday Blitz"]
[Site "Chess.com"]
[Date "2020.09.08"]
[Round "3"]
[White "tk22h"]
[Black "TudorAnton"]
[Result "1/2-1/2"]
[WhiteElo "2373"]
[BlackElo "2560"]
[TimeControl "180+1"]
[EndTime "10:28:09 PDT"]
[Termination "Game drawn by repetition"]

1. c4 {[%clk 0:03:00.9]} 1... e5 {[%clk 0:02:52]} 2. Nc3 {[%clk 0:03:00.5]} 2...
Nc6 {[%clk 0:02:50.8]} 3. Nf3 {[%clk 0:03:00.6]} 3... g6 {[%clk 0:02:50.1]} 4.
d4 {[%clk 0:03:00]} 4... exd4 {[%clk 0:02:48.7]} 5. Nxd4 {[%clk 0:03:00.9]} 5...
Bg7 {[%clk 0:02:49.2]} 6. Nxc6 {[%clk 0:03:01.3]} 6... bxc6 {[%clk 0:02:50.1]}
7. g3 {[%clk 0:03:01.6]} 7... Ne7 {[%clk 0:02:48.4]} 8. Bg2 {[%clk 0:03:01.7]}
8... O-O {[%clk 0:02:49]} 9. O-O {[%clk 0:03:01.5]} 9... Rb8 {[%clk 0:02:49.4]}
10. Qd2 {[%clk 0:03:01.6]} 10... d6 {[%clk 0:02:49.4]} 11. b3 {[%clk 0:03:01.8]}
11... c5 {[%clk 0:02:47.5]} 12. Bb2 {[%clk 0:03:01.6]} 12... Bd7 {[%clk
0:02:40.7]} 13. Rad1 {[%clk 0:03:01.3]} 13... Bc6 {[%clk 0:02:41]} 14. Nd5
{[%clk 0:02:57.2]} 14... Nxd5 {[%clk 0:02:38.2]} 15. Bxg7 {[%clk 0:02:55.5]}
15... Kxg7 {[%clk 0:02:37.2]} 16. Bxd5 {[%clk 0:02:55.3]} 16... Bxd5 {[%clk
0:02:36.8]} 17. Qxd5 {[%clk 0:02:55.2]} 17... Re8 {[%clk 0:02:37.4]} 18. e3
{[%clk 0:02:55.1]} 18... a5 {[%clk 0:02:36.7]} 19. h4 {[%clk 0:02:50.8]} 19...
a4 {[%clk 0:02:35.1]} 20. Qd3 {[%clk 0:02:49.3]} 20... Rb4 {[%clk 0:02:31.7]}
21. Rd2 {[%clk 0:02:45.3]} 21... Qf6 {[%clk 0:02:30]} 22. Rb1 {[%clk 0:02:39.9]}
22... Ra8 {[%clk 0:02:27.7]} 23. Rc1 {[%clk 0:02:36.2]} 23... axb3 {[%clk
0:02:27.1]} 24. axb3 {[%clk 0:02:35.8]} 24... Ra3 {[%clk 0:02:26.7]} 25. Rc3
{[%clk 0:02:32.7]} 25... Qf3 {[%clk 0:02:20.3]} 26. Rd1 {[%clk 0:02:32.4]} 26...
Ra2 {[%clk 0:02:17.9]} 27. Rc2 {[%clk 0:02:32.5]} 27... Rxb3 {[%clk 0:02:08.3]}
28. Qd2 {[%clk 0:02:21.1]} 28... Rxc2 {[%clk 0:02:00.1]} 29. Qxc2 {[%clk
0:02:21.2]} 29... Rb4 {[%clk 0:02:00.7]} 30. Rc1 {[%clk 0:02:15]} 30... Qf6
{[%clk 0:02:00.8]} 31. Qc3 {[%clk 0:02:13]} 31... Qxc3 {[%clk 0:01:59.9]} 32.
Rxc3 {[%clk 0:02:13]} 32... Rb2 {[%clk 0:02:00.2]} 33. Kg2 {[%clk 0:02:12.9]}
33... Kf6 {[%clk 0:02:00.7]} 34. Kf3 {[%clk 0:02:12.9]} 34... Ke5 {[%clk
0:02:01.2]} 35. Ra3 {[%clk 0:02:12.3]} 35... Rc2 {[%clk 0:02:00.1]} 36. Ra7
{[%clk 0:02:11.9]} 36... Rxc4 {[%clk 0:01:59.9]} 37. Rxc7 {[%clk 0:02:11.9]}
37... Ke6 {[%clk 0:02:00.1]} 38. g4 {[%clk 0:02:06.8]} 38... h5 {[%clk
0:01:57.3]} 39. gxh5 {[%clk 0:02:03.7]} 39... gxh5 {[%clk 0:01:58.2]} 40. e4
{[%clk 0:02:00.1]} 40... Rc3+ {[%clk 0:01:56.5]} 41. Kf4 {[%clk 0:02:00.1]}
41... Rc2 {[%clk 0:01:50.6]} 42. f3 {[%clk 0:01:59.4]} 42... Rg2 {[%clk
0:01:50.3]} 43. Rc8 {[%clk 0:01:55]} 43... Kd7 {[%clk 0:01:49.1]} 44. Rf8 {[%clk
0:01:54.4]} 44... Rg7 {[%clk 0:01:49.1]} 45. Rh8 {[%clk 0:01:53.7]} 45... c4
{[%clk 0:01:47.7]} 46. Rxh5 {[%clk 0:01:53.4]} 46... c3 {[%clk 0:01:46.7]} 47.
Ra5 {[%clk 0:01:48.1]} 47... Rg1 {[%clk 0:01:42.7]} 48. Ra2 {[%clk 0:01:47.6]}
48... Rc1 {[%clk 0:01:41.9]} 49. Ke3 {[%clk 0:01:46.1]} 49... Ke6 {[%clk
0:01:42.1]} 50. Kd3 {[%clk 0:01:46.1]} 50... Rf1 {[%clk 0:01:40.9]} 51. Ke2
{[%clk 0:01:42.4]} 51... Rh1 {[%clk 0:01:40.4]} 52. Rc2 {[%clk 0:01:40.9]} 52...
Rxh4 {[%clk 0:01:36.8]} 53. Rxc3 {[%clk 0:01:40.9]} 53... Ke5 {[%clk 0:01:36.5]}
54. Ke3 {[%clk 0:01:41.1]} 54... Rh1 {[%clk 0:01:35.8]} 55. Ra3 {[%clk
0:01:39.8]} 55... Rb1 {[%clk 0:01:34.7]} 56. f4+ {[%clk 0:01:31.8]} 56... Ke6
{[%clk 0:01:34.5]} 57. Ra7 {[%clk 0:01:31.7]} 57... Rb3+ {[%clk 0:01:33.6]} 58.
Kd4 {[%clk 0:01:31.3]} 58... Rb4+ {[%clk 0:01:32.2]} 59. Ke3 {[%clk 0:01:30.9]}
59... f5 {[%clk 0:01:29.9]} 60. exf5+ {[%clk 0:01:28.3]} 60... Kxf5 {[%clk
0:01:30.8]} 61. Ra5+ {[%clk 0:01:28]} 61... Ke6 {[%clk 0:01:30.7]} 62. Rh5
{[%clk 0:01:22.5]} 62... Ra4 {[%clk 0:01:29.5]} 63. Rg5 {[%clk 0:01:21.6]} 63...
Kf6 {[%clk 0:01:28.6]} 64. Rd5 {[%clk 0:01:20.9]} 64... Ke6 {[%clk 0:01:28.5]}
65. Rh5 {[%clk 0:01:20.4]} 65... Kf6 {[%clk 0:01:28.5]} 66. Rd5 {[%clk
0:01:20.2]} 66... Ke6 {[%clk 0:01:28.4]} 67. Rh5 {[%clk 0:01:20.1]} 67... Kf6
{[%clk 0:01:28.4]} 68. Rd5 {[%clk 0:01:19.8]} 1/2-1/2

[Event "*** SCC Grand Prix: Titled Tuesday Blitz"]
[Site "Chess.com"]
[Date "2020.09.08"]
[Round "3"]
[White "MPGM"]
[Black "Larina_Marija"]
[Result "1-0"]
[WhiteElo "2471"]
[BlackElo "2079"]
[TimeControl "180+1"]
[EndTime "10:28:09 PDT"]
[Termination "MPGM won by resignation"]

1. d4 {[%clk 0:03:00.9]} 1... f5 {[%clk 0:02:54.5]} 2. c4 {[%clk 0:02:55.8]}
2... Nf6 {[%clk 0:02:52.2]} 3. Nc3 {[%clk 0:02:55.2]} 3... d6 {[%clk 0:02:51.6]}
4. Nf3 {[%clk 0:02:54.1]} 4... g6 {[%clk 0:02:51.3]} 5. Bf4 {[%clk 0:02:54.7]}
5... Bg7 {[%clk 0:02:51.3]} 6. e3 {[%clk 0:02:55.3]} 6... O-O {[%clk 0:02:50.8]}
7. c5 {[%clk 0:02:55.8]} 7... Nh5 {[%clk 0:02:47.6]} 8. Bc4+ {[%clk 0:02:49.9]}
8... e6 {[%clk 0:02:46.9]} 9. O-O {[%clk 0:02:48.9]} 9... Nxf4 {[%clk
0:02:46.7]} 10. exf4 {[%clk 0:02:48.8]} 10... h6 {[%clk 0:02:28.5]} 11. Re1
{[%clk 0:02:18.7]} 11... Qf6 {[%clk 0:02:26.1]} 12. cxd6 {[%clk 0:02:13.1]}
12... cxd6 {[%clk 0:02:25.7]} 13. d5 {[%clk 0:02:12.9]} 13... Re8 {[%clk
0:01:31.6]} 14. dxe6 {[%clk 0:02:11]} 14... Kh7 {[%clk 0:00:57.3]} 15. Qxd6
{[%clk 0:01:43.4]} 15... Nc6 {[%clk 0:00:46.8]} 16. Rad1 {[%clk 0:01:39.5]}
16... Bf8 {[%clk 0:00:39.6]} 17. Qd5 {[%clk 0:01:11.9]} 17... Nb4 {[%clk
0:00:23.9]} 18. Qb5 {[%clk 0:00:46.5]} 18... a6 {[%clk 0:00:17]} 19. Qxe8 {[%clk
0:00:46]} 1-0

[Event "*** SCC Grand Prix: Titled Tuesday Blitz"]
[Site "Chess.com"]
[Date "2020.09.08"]
[Round "3"]
[White "Mr_Sinigami"]
[Black "PavelChernomordik"]
[Result "1-0"]
[WhiteElo "2547"]
[BlackElo "2348"]
[TimeControl "180+1"]
[EndTime "10:28:15 PDT"]
[Termination "Mr_Sinigami won by resignation"]

1. d4 {[%clk 0:03:00.9]} 1... g6 {[%clk 0:02:59.6]} 2. e4 {[%clk 0:02:54.7]}
2... Bg7 {[%clk 0:03:00.5]} 3. Nc3 {[%clk 0:02:53.4]} 3... d6 {[%clk 0:03:00.2]}
4. Be3 {[%clk 0:02:53.4]} 4... a6 {[%clk 0:02:59.9]} 5. h3 {[%clk 0:02:52.8]}
5... b5 {[%clk 0:02:59.8]} 6. g4 {[%clk 0:02:48]} 6... Bb7 {[%clk 0:02:59]} 7.
Bg2 {[%clk 0:02:47.4]} 7... Nd7 {[%clk 0:02:59.2]} 8. Nge2 {[%clk 0:02:42.3]}
8... e6 {[%clk 0:02:55]} 9. Ng3 {[%clk 0:02:36.2]} 9... Ne7 {[%clk 0:02:50.3]}
10. O-O {[%clk 0:02:35.3]} 10... O-O {[%clk 0:02:47.6]} 11. Qd2 {[%clk
0:02:29.2]} 11... c5 {[%clk 0:02:32.9]} 12. dxc5 {[%clk 0:02:13.5]} 12... Nxc5
{[%clk 0:02:25.5]} 13. Rad1 {[%clk 0:02:10.7]} 13... b4 {[%clk 0:02:10.2]} 14.
Nce2 {[%clk 0:02:09.8]} 14... Na4 {[%clk 0:01:58.1]} 15. Qxb4 {[%clk 0:01:58]}
15... Nxb2 {[%clk 0:01:42.8]} 16. Qxb7 {[%clk 0:01:56.9]} 16... Nxd1 {[%clk
0:01:35.4]} 17. Rxd1 {[%clk 0:01:56.9]} 17... d5 {[%clk 0:01:27.6]} 18. exd5
{[%clk 0:01:52.9]} 18... exd5 {[%clk 0:01:18.9]} 19. Bxd5 {[%clk 0:01:50.7]}
19... Nxd5 {[%clk 0:01:17.7]} 20. Rxd5 {[%clk 0:01:47.2]} 20... Qf6 {[%clk
0:01:15.1]} 21. Bd4 {[%clk 0:01:37.9]} 21... Qe6 {[%clk 0:01:03.9]} 22. Bxg7
{[%clk 0:01:28.3]} 22... Kxg7 {[%clk 0:01:01.9]} 23. Nf4 {[%clk 0:01:21.7]}
23... Qe1+ {[%clk 0:00:58.9]} 24. Kg2 {[%clk 0:01:20.6]} 24... Rab8 {[%clk
0:00:57.7]} 25. Qxa6 {[%clk 0:01:11.1]} 25... Rb1 {[%clk 0:00:55.5]} 26. Nfh5+
{[%clk 0:00:56]} 26... Kg8 {[%clk 0:00:43]} 27. Qf6 {[%clk 0:00:54.4]} 27...
Qg1+ {[%clk 0:00:35.4]} 28. Kf3 {[%clk 0:00:54.1]} 1-0

[Event "*** SCC Grand Prix: Titled Tuesday Blitz"]
[Site "Chess.com"]
[Date "2020.09.08"]
[Round "3"]
[White "narutosmith"]
[Black "Gusarov91"]
[Result "0-1"]
[WhiteElo "2252"]
[BlackElo "2623"]
[TimeControl "180+1"]
[EndTime "10:28:15 PDT"]
[Termination "Gusarov91 won on time"]

1. c4 {[%clk 0:03:00.9]} 1... Nf6 {[%clk 0:02:58.4]} 2. Nc3 {[%clk 0:03:00.8]}
2... d5 {[%clk 0:02:58.6]} 3. cxd5 {[%clk 0:03:00.3]} 3... Nxd5 {[%clk
0:02:59.5]} 4. g3 {[%clk 0:03:00.6]} 4... g6 {[%clk 0:02:57.9]} 5. Bg2 {[%clk
0:03:00.6]} 5... Nb6 {[%clk 0:02:58.6]} 6. d3 {[%clk 0:03:00.9]} 6... Bg7 {[%clk
0:02:58.9]} 7. Be3 {[%clk 0:03:01.6]} 7... O-O {[%clk 0:02:58.9]} 8. Qd2 {[%clk
0:03:02]} 8... Nc6 {[%clk 0:02:59.2]} 9. Bxc6 {[%clk 0:03:01.8]} 9... bxc6
{[%clk 0:02:59.3]} 10. Nf3 {[%clk 0:03:01.1]} 10... Bh3 {[%clk 0:02:59]} 11. Rg1
{[%clk 0:02:59.8]} 11... Nd5 {[%clk 0:02:58.2]} 12. Bh6 {[%clk 0:02:58.6]} 12...
Bg4 {[%clk 0:02:56]} 13. Bxg7 {[%clk 0:02:57.8]} 13... Kxg7 {[%clk 0:02:56]} 14.
Ng5 {[%clk 0:02:36.7]} 14... e5 {[%clk 0:02:49.6]} 15. Rc1 {[%clk 0:02:20.6]}
15... Rb8 {[%clk 0:02:41.9]} 16. b3 {[%clk 0:02:19.5]} 16... Qe7 {[%clk
0:02:33.8]} 17. Na4 {[%clk 0:02:08.8]} 17... h6 {[%clk 0:02:30.7]} 18. Ne4
{[%clk 0:01:58.9]} 18... f5 {[%clk 0:02:29.9]} 19. Nec5 {[%clk 0:01:49.8]} 19...
Kh7 {[%clk 0:02:24.6]} 20. Na6 {[%clk 0:01:44.7]} 20... Rbe8 {[%clk 0:02:17.6]}
21. Rxc6 {[%clk 0:01:42.7]} 21... e4 {[%clk 0:02:18]} 22. N4c5 {[%clk
0:00:43.5]} 22... exd3 {[%clk 0:02:12.3]} 23. e3 {[%clk 0:00:37.8]} 23... Be2
{[%clk 0:02:06.5]} 24. Nxd3 {[%clk 0:00:34.7]} 24... Bf3 {[%clk 0:01:53.1]} 25.
Nf4 {[%clk 0:00:30.7]} 25... Rd8 {[%clk 0:01:35.5]} 26. Nxd5 {[%clk 0:00:21.9]}
26... Rxd5 {[%clk 0:01:34.4]} 27. Rxc7 {[%clk 0:00:16.4]} 27... Qxc7 {[%clk
0:01:29.8]} 28. Nxc7 {[%clk 0:00:15.8]} 28... Rxd2 {[%clk 0:01:30.1]} 29. Kxd2
{[%clk 0:00:16.4]} 29... Rd8+ {[%clk 0:01:30.3]} 30. Kc3 {[%clk 0:00:12.9]}
30... Rc8 {[%clk 0:01:30.7]} 31. Kb4 {[%clk 0:00:10.6]} 31... Rxc7 {[%clk
0:01:31.1]} 32. Rb1 {[%clk 0:00:09.1]} 32... Rc2 {[%clk 0:01:30]} 33. h3 {[%clk
0:00:04.4]} 33... Rxa2 {[%clk 0:01:29.1]} 34. Rc1 {[%clk 0:00:02.3]} 34... Rxf2
{[%clk 0:01:28.5]} 35. Rc7+ {[%clk 0:00:02.2]} 35... Kg8 {[%clk 0:01:28.8]} 36.
Rxa7 {[%clk 0:00:01.5]} 36... Re2 {[%clk 0:01:28.5]} 0-1

[Event "*** SCC Grand Prix: Titled Tuesday Blitz"]
[Site "Chess.com"]
[Date "2020.09.08"]
[Round "3"]
[White "RestartingChess"]
[Black "Dr-Bassem"]
[Result "0-1"]
[WhiteElo "2434"]
[BlackElo "2765"]
[TimeControl "180+1"]
[EndTime "10:28:18 PDT"]
[Termination "Dr-Bassem won by resignation"]

1. e4 {[%clk 0:03:00.9]} 1... d6 {[%clk 0:02:49.1]} 2. d4 {[%clk 0:03:00.1]}
2... Nf6 {[%clk 0:02:49.5]} 3. Nc3 {[%clk 0:02:59.9]} 3... e5 {[%clk 0:02:49.4]}
4. dxe5 {[%clk 0:03:00]} 4... dxe5 {[%clk 0:02:49]} 5. Qxd8+ {[%clk 0:03:00.9]}
5... Kxd8 {[%clk 0:02:49.6]} 6. Nf3 {[%clk 0:03:01.8]} 6... Bd6 {[%clk
0:02:48.1]} 7. Bg5 {[%clk 0:03:01.6]} 7... Be6 {[%clk 0:02:39.2]} 8. O-O-O
{[%clk 0:03:00.8]} 8... Nd7 {[%clk 0:02:37.5]} 9. Bb5 {[%clk 0:02:59.6]} 9... h6
{[%clk 0:02:13.9]} 10. Bxd7 {[%clk 0:02:54.8]} 10... Bxd7 {[%clk 0:02:08.8]} 11.
Bh4 {[%clk 0:02:39.4]} 11... g5 {[%clk 0:01:59.1]} 12. Rxd6 {[%clk 0:02:25.4]}
12... cxd6 {[%clk 0:01:53.1]} 13. Nxg5 {[%clk 0:02:25.6]} 13... Ke8 {[%clk
0:01:43.1]} 14. Nf3 {[%clk 0:02:21.9]} 14... Nh5 {[%clk 0:01:37.6]} 15. Nd5
{[%clk 0:02:20.5]} 15... Rc8 {[%clk 0:01:37.5]} 16. Rd1 {[%clk 0:02:16.2]} 16...
Be6 {[%clk 0:01:28.5]} 17. Nf6+ {[%clk 0:02:11.6]} 17... Nxf6 {[%clk 0:01:28.4]}
18. Bxf6 {[%clk 0:02:12.5]} 18... Rg8 {[%clk 0:01:28.6]} 19. g4 {[%clk
0:01:56.7]} 19... Bxg4 {[%clk 0:01:24.3]} 20. Rg1 {[%clk 0:01:56.2]} 20... Rg6
{[%clk 0:01:17.3]} 21. Nh4 {[%clk 0:01:52.8]} 21... Rxf6 {[%clk 0:01:16.7]} 22.
Rxg4 {[%clk 0:01:53.7]} 22... Rxf2 {[%clk 0:01:16.4]} 23. c3 {[%clk 0:01:52.7]}
23... Rf4 {[%clk 0:01:12.4]} 24. Rg8+ {[%clk 0:01:49]} 24... Kd7 {[%clk
0:01:11.9]} 25. Rxc8 {[%clk 0:01:49.9]} 25... Kxc8 {[%clk 0:01:11.9]} 26. Nf5
{[%clk 0:01:50.8]} 26... Kd7 {[%clk 0:01:10.7]} 27. Nxh6 {[%clk 0:01:47.5]}
27... Rxe4 {[%clk 0:01:09]} 28. Nxf7 {[%clk 0:01:47.8]} 28... Rh4 {[%clk
0:01:08.6]} 29. Kc2 {[%clk 0:01:44.2]} 29... Rxh2+ {[%clk 0:01:07.9]} 30. Kb3
{[%clk 0:01:45.1]} 30... b5 {[%clk 0:01:03.1]} 31. Ng5 {[%clk 0:01:45]} 31... d5
{[%clk 0:00:58.9]} 32. Nf3 {[%clk 0:01:45]} 32... Re2 {[%clk 0:00:59.3]} 33. a4
{[%clk 0:01:38.9]} 33... bxa4+ {[%clk 0:00:57.9]} 34. Kxa4 {[%clk 0:01:39.8]}
34... e4 {[%clk 0:00:56.4]} 35. Ne5+ {[%clk 0:01:29]} 35... Kd6 {[%clk 0:00:55]}
36. Nf7+ {[%clk 0:01:29.4]} 36... Ke7 {[%clk 0:00:49.6]} 37. Ne5 {[%clk
0:01:28.9]} 37... Rxb2 {[%clk 0:00:49.9]} 38. Ka3 {[%clk 0:01:28.4]} 38... Rb6
{[%clk 0:00:47]} 39. c4 {[%clk 0:01:26.3]} 39... Ke6 {[%clk 0:00:30.9]} 40. Ng4
{[%clk 0:01:15.9]} 40... dxc4 {[%clk 0:00:27.9]} 41. Ne3 {[%clk 0:01:15.4]}
41... Rb3+ {[%clk 0:00:26.9]} 42. Ka4 {[%clk 0:01:16.3]} 0-1

[Event "*** SCC Grand Prix: Titled Tuesday Blitz"]
[Site "Chess.com"]
[Date "2020.09.08"]
[Round "3"]
[White "mfwagnerpeixoto"]
[Black "MustafayevFarid2004"]
[Result "0-1"]
[WhiteElo "2258"]
[BlackElo "2506"]
[TimeControl "180+1"]
[EndTime "10:28:19 PDT"]
[Termination "MustafayevFarid2004 won by resignation"]

1. e4 {[%clk 0:03:00.9]} 1... Nf6 {[%clk 0:02:58.4]} 2. Nc3 {[%clk 0:02:55.6]}
2... d5 {[%clk 0:02:53.3]} 3. e5 {[%clk 0:02:52.7]} 3... d4 {[%clk 0:02:48.8]}
4. exf6 {[%clk 0:02:50.9]} 4... dxc3 {[%clk 0:02:48.9]} 5. fxg7 {[%clk 0:02:42]}
5... cxd2+ {[%clk 0:02:49.8]} 6. Qxd2 {[%clk 0:02:41]} 6... Qxd2+ {[%clk
0:02:49]} 7. Bxd2 {[%clk 0:02:41.9]} 7... Bxg7 {[%clk 0:02:49.8]} 8. O-O-O
{[%clk 0:02:40.8]} 8... c5 {[%clk 0:02:39.1]} 9. Bb5+ {[%clk 0:02:31.8]} 9...
Bd7 {[%clk 0:02:38.8]} 10. Bxd7+ {[%clk 0:02:31.6]} 10... Nxd7 {[%clk
0:02:39.7]} 11. Nf3 {[%clk 0:02:31.6]} 11... O-O {[%clk 0:02:39.6]} 12. Be3
{[%clk 0:02:25.8]} 12... Rfd8 {[%clk 0:02:38]} 13. Rd5 {[%clk 0:02:19.7]} 13...
e6 {[%clk 0:02:37.2]} 14. Rd2 {[%clk 0:02:14.4]} 14... Nb6 {[%clk 0:02:19.6]}
15. c3 {[%clk 0:01:54.8]} 15... Rxd2 {[%clk 0:02:18]} 16. Nxd2 {[%clk
0:01:53.2]} 16... Rc8 {[%clk 0:02:10.6]} 17. Ne4 {[%clk 0:01:51.4]} 17... Nd5
{[%clk 0:02:10.9]} 18. Bd2 {[%clk 0:01:29.1]} 18... Rc6 {[%clk 0:02:04.4]} 19.
Rd1 {[%clk 0:01:21.3]} 19... f5 {[%clk 0:01:55]} 20. Ng3 {[%clk 0:01:20.5]}
20... Kf7 {[%clk 0:01:51.9]} 21. a3 {[%clk 0:01:20.1]} 21... c4 {[%clk
0:01:48.5]} 22. Ne2 {[%clk 0:01:17.5]} 22... e5 {[%clk 0:01:44.5]} 23. Be1
{[%clk 0:01:05.3]} 23... Ke6 {[%clk 0:01:44.2]} 24. Ng3 {[%clk 0:01:03.1]} 24...
Nf4 {[%clk 0:01:36.8]} 25. Bd2 {[%clk 0:00:54.5]} 25... Nd3+ {[%clk 0:01:36.6]}
26. Kb1 {[%clk 0:00:53.4]} 26... Rb6 {[%clk 0:01:34.2]} 27. Bc1 {[%clk
0:00:50.4]} 27... Bf8 {[%clk 0:01:25.5]} 28. Kc2 {[%clk 0:00:38]} 28... Nxf2
{[%clk 0:01:22]} 29. Rf1 {[%clk 0:00:35.2]} 29... Bc5 {[%clk 0:01:21.7]} 30. Bd2
{[%clk 0:00:20.3]} 30... f4 {[%clk 0:01:20]} 31. Nh5 {[%clk 0:00:18.5]} 31...
Nd3 {[%clk 0:01:18.5]} 32. Bc1 {[%clk 0:00:15]} 32... Be3 {[%clk 0:01:12.7]} 33.
Bxe3 {[%clk 0:00:12]} 33... Rxb2+ {[%clk 0:01:12.9]} 34. Kd1 {[%clk 0:00:12.5]}
34... fxe3 {[%clk 0:01:13.8]} 35. Rf6+ {[%clk 0:00:11]} 35... Ke7 {[%clk
0:01:14.2]} 0-1